bitfinex/quotes_SOLUSD_20241116
["timestamp","ask_amount","ask_price","bid_price","bid_amount"]
[1731778453575,23.87055862,215.46,215.37,11.6079]
[1731778453775,174.62982324,215.46,215.37,11.6079]
[1731778454284,150.75926462,215.46,215.37,20.69642679]
[1731778454586,150.75926462,215.46,215.37,11.6079]
[1731778455963,150.75926462,215.46,215.36,9.08852679]
[1731778456167,150.75926462,215.46,215.33,23.2199]
[1731778456168,150.75926462,215.46,215.37,9.08852679]
[1731778456368,150.75926462,215.46,215.38,29.08852679]
[1731778456885,150.75926462,215.46,215.39,9.08852679]
[1731778457198,150.75926462,215.46,215.4,4.6425]
[1731778457669,4.641,215.47,215.4,4.6425]
[1731778458587,28.51105862,215.49,215.4,4.6425]
[1731778460578,4.6403,215.51,215.4,13.73102679]
[1731778460803,155.39866462,215.55,215.44,9.08852679]
[1731778460980,150.75926462,215.55,215.46,9.08852679]
[1731778461296,0.09367462,215.55,215.46,9.08852679]
[1731778461678,4.6391,215.56,215.41,0.12549]
[1731778462003,155.39766462,215.59,215.47,9.08852679]
[1731778462190,23.902374,215.57,215.43,20.0]
[1731778462403,0.09367462,215.56,215.43,29.08852679]
[1731778463009,0.09367462,215.54,215.45,34.21104542]
[1731778463303,4.6392,215.55,215.45,34.21104542]
[1731778463473,4.6392,215.55,215.45,20.0]
[1731778463901,4.6392,215.55,215.46,16.2442]
[1731778464405,23.87055862,215.56,215.47,20.0]
[1731778465299,4.6389,215.57,215.48,14.21104542]
[1731778465503,4.6389,215.57,215.49,16.2419]
[1731778469622,0.09367462,215.57,215.49,16.2419]
[1731778472709,4.6389,215.57,215.49,16.2419]
[1731778472898,150.75926462,215.6,215.5,14.21104542]
[1731778473112,4.6381,215.61,215.51,20.0]
[1731778474594,4.6381,215.61,215.52,16.2397]
[1731778475125,23.99604862,215.6,215.52,16.2397]
[1731778475507,4.6384,215.59,215.52,11.5998]
[1731778481499,0.09367462,215.6,215.52,11.5998]
[1731778481694,150.75926462,215.61,215.52,11.5998]
[1731778482199,155.39726462,215.61,215.52,11.5998]
[1731778483312,155.39726462,215.61,215.52,16.2397]
[1731778483706,23.99604862,215.6,215.52,16.2397]
[1731778483902,23.99604862,215.6,215.48,11.6018]
[1731778484095,23.99604862,215.6,215.48,16.2426]
[1731778485197,0.09367462,215.56,215.48,11.6018]
[1731778486815,0.09367462,215.54,215.42,16.2472]
[1731778487018,0.09367462,215.54,215.43,20.0]
[1731778487219,23.87055862,215.54,215.43,20.0]
[1731778487792,28.51015862,215.54,215.44,16.2457]
[1731778488321,0.09367462,215.54,215.45,20.0]
[1731778488611,4.73317462,215.54,215.45,20.0]
[1731778489642,4.73317462,215.54,215.46,16.2442]
[1731778490438,0.09367462,215.52,215.44,4.6415]
[1731778491003,0.09367462,215.52,215.42,11.6051]
[1731778491004,0.09367462,215.52,215.42,16.247]
[1731778491416,4.6401,215.51,215.42,11.6051]
[1731778491623,23.776884,215.5,215.42,11.6051]
[1731778492424,0.09367462,215.49,215.39,4.6427]
[1731778492624,4.6408,215.48,215.39,4.6427]
[1731778493514,4.6408,215.48,215.38,11.6073]
[1731778493818,4.6408,215.48,215.39,20.0]
[1731778494630,4.6408,215.48,215.4,4.6425]
[1731778495005,4.6408,215.48,215.4,16.2488]
[1731778495418,23.776884,215.47,215.4,11.6063]
[1731778496121,23.776884,215.47,215.4,16.2488]
[1731778496419,174.53614862,215.47,215.38,4.6428]
[1731778496703,23.776884,215.45,215.36,4.6433]
[1731778497219,4.6412,215.46,215.38,14.21104542]
[1731778497420,155.40026462,215.47,215.37,25.81894542]
[1731778497722,155.40026462,215.47,215.37,11.6079]
[1731778498528,155.40026462,215.47,215.37,16.251]
[1731778500929,155.40026462,215.47,215.36,9.10086589]
[1731778501526,155.40026462,215.47,215.33,23.2201]
[1731778501527,23.776884,215.46,215.34,29.10086589]
[1731778501947,4.6414,215.45,215.35,16.2526]
[1731778503647,4.6414,215.45,215.35,25.35346589]
[1731778504143,4.6414,215.45,215.35,16.2526]
[1731778504621,4.6414,215.45,215.35,25.35346589]
[1731778505332,4.6414,215.45,215.37,4.6431]
[1731778505749,150.75926462,215.49,215.4,9.10086589]
[1731778505750,4.6407,215.49,215.4,9.10086589]
[1731778505928,4.6407,215.49,215.41,9.10086589]
[1731778506128,150.75926462,215.53,215.45,9.10086589]
[1731778506319,155.39896462,215.53,215.4,24.57318168]
[1731778506561,155.39896462,215.53,215.43,29.10086589]
[1731778506838,155.39896462,215.53,215.44,9.10086589]
[1731778507359,155.39896462,215.53,215.45,4.6414]
[1731778507644,4.6394,215.55,215.46,9.10086589]
[1731778507848,150.75926462,215.56,215.49,9.10086589]
[1731778508046,0.09367462,215.61,215.49,9.10086589]
[1731778508237,155.49093924,215.61,215.49,9.10086589]
[1731778508427,155.39726462,215.61,215.49,9.10086589]
[1731778508626,0.09367462,215.6,215.49,9.10086589]
[1731778508863,0.09367462,215.6,215.49,14.20315048]
[1731778509040,0.09367462,215.6,215.45,16.245]
[1731778509041,4.73207462,215.6,215.5,14.20315048]
[1731778509633,23.776884,215.59,215.5,14.20315048]
[1731778510646,28.415384,215.59,215.51,4.6401]
[1731778510876,150.75926462,215.66,215.52,14.20315048]
[1731778511026,155.39636462,215.65,215.54,14.20315048]
[1731778511643,4.6371,215.65,215.54,14.20315048]
[1731778512430,4.6371,215.65,215.55,14.20315048]
[1731778512629,4.6371,215.65,215.56,4.639]
[1731778512939,23.776884,215.64,215.56,4.639]
[1731778513256,23.776884,215.64,215.56,16.2366]
[1731778514041,0.09367462,215.63,215.52,14.20315048]
[1731778514335,0.21916462,215.63,215.51,16.24]
[1731778515137,40.007584,215.64,215.51,16.24]
[1731778515138,23.87055862,215.61,215.51,16.24]
[1731778515351,0.09367462,215.61,215.51,16.24]
[1731778515550,23.776884,215.59,215.51,16.24]
[1731778516543,4.6386,215.58,215.51,11.5999]
[1731778517361,23.776884,215.59,215.51,11.5999]
[1731778517960,28.415384,215.59,215.51,11.5999]
[1731778520636,0.09367462,215.58,215.44,23.2083]
[1731778520837,0.09367462,215.58,215.43,14.20315048]
[1731778520838,0.21916462,215.58,215.43,14.20315048]
[1731778521141,0.09367462,215.54,215.42,16.2472]
[1731778521551,0.12549,215.51,215.42,11.6052]
[1731778521746,174.53614862,215.52,215.42,16.2472]
[1731778521965,174.53614862,215.52,215.43,14.20315048]
[1731778522401,150.75926462,215.52,215.45,14.20315048]
[1731778522545,150.75926462,215.52,215.46,14.20315048]
[1731778522744,150.75926462,215.62,215.48,14.20315048]
[1731778522946,0.09367462,215.6,215.5,14.20315048]
[1731778523253,0.09367462,215.6,215.49,14.20315048]
[1731778523568,0.09367462,215.6,215.48,14.20315048]
[1731778523930,23.87055862,215.6,215.48,14.20315048]
[1731778524134,23.99604862,215.6,215.49,16.2419]
[1731778525061,23.99604862,215.6,215.49,30.44505048]
[1731778525430,23.776884,215.58,215.49,30.44505048]
[1731778526160,23.776884,215.6,215.52,14.20315048]
[1731778527255,28.415084,215.6,215.53,4.6397]
[1731778527461,23.776884,215.59,215.53,4.6397]
[1731778529973,23.776884,215.59,215.51,14.20315048]
[1731778531962,23.776884,215.59,215.52,16.2397]
[1731778534968,4.6374,215.64,215.55,14.20315048]
[1731778535600,4.6374,215.64,215.53,14.20315048]
[1731778535756,4.6374,215.64,215.52,16.2397]
[1731778535968,0.09367462,215.63,215.52,16.2397]
[1731778536369,23.99604862,215.63,215.52,16.2397]
[1731778537268,4.6377,215.62,215.52,16.2397]
[1731778537451,23.776884,215.61,215.52,16.2397]
[1731778538276,4.6382,215.6,215.52,16.2397]
[1731778543370,23.776884,215.59,215.52,16.2397]
[1731778543577,4.6386,215.58,215.52,16.2397]
[1731778544083,23.776884,215.57,215.5,4.6401]
[1731778545691,28.415784,215.57,215.48,16.2425]
[1731778546671,28.415784,215.57,215.47,20.0]
[1731778547567,28.415784,215.57,215.47,14.20315048]
[1731778547773,28.415784,215.57,215.48,16.2428]
[1731778548890,30.0,215.55,215.48,16.2428]
[1731778549087,23.776884,215.54,215.46,4.641]
[1731778549802,4.6397,215.53,215.46,4.641]
[1731778550373,34.6395,215.55,215.47,14.20315048]
[1731778551281,4.6395,215.55,215.47,14.20315048]
[1731778551595,150.75926462,215.59,215.47,14.20315048]
[1731778551596,28.50915862,215.58,215.48,4.6408]
[1731778551895,28.415484,215.58,215.49,14.20315048]
[1731778552268,28.415484,215.58,215.48,30.44595048]
[1731778552791,28.415484,215.58,215.48,16.2428]
[1731778554017,28.415484,215.58,215.48,11.602]
[1731778554201,0.21916462,215.57,215.45,4.6412]
[1731778554578,0.21916462,215.57,215.45,18.84435048]
[1731778554894,0.21916462,215.57,215.45,13.73478351]
[1731778555398,23.776884,215.55,215.47,9.09358351]
[1731778555792,23.776884,215.55,215.46,9.09358351]
[1731778556808,23.776884,215.55,215.47,16.2435]
[1731778557477,30.40479064,215.65,215.47,16.2435]
[1731778557478,4.6383,215.6,215.5,9.09358351]
[1731778557691,23.776884,215.59,215.51,20.0]
[1731778558513,23.776884,215.6,215.51,20.0]
[1731778558817,23.776884,215.58,215.52,4.6399]
[1731778559604,23.776884,215.58,215.51,11.6003]
[1731778560024,28.415584,215.58,215.51,11.6003]
[1731778560404,4.6373,215.64,215.51,11.6003]
[1731778560715,0.09367462,215.63,215.51,11.6003]
[1731778561415,4.6377,215.62,215.51,11.6003]
[1731778561613,23.776884,215.61,215.51,11.6003]
[1731778562503,23.776884,215.6,215.51,11.6003]
[1731778563015,23.776884,215.6,215.51,20.69388351]
[1731778563227,7.22289532,215.65,215.52,20.0]
[1731778563522,4.6373,215.65,215.53,9.09358351]
[1731778564402,4.73037462,215.67,215.54,16.2382]
[1731778564715,23.776884,215.66,215.54,16.2382]
[1731778565619,0.09367462,215.67,215.54,16.2382]
[1731778565859,23.99604862,215.66,215.54,16.2382]
[1731778566823,23.776884,215.64,215.54,16.2382]
[1731778567904,4.6375,215.63,215.54,16.2382]
[1731778568529,23.776884,215.62,215.54,16.2382]
[1731778569450,23.776884,215.62,215.54,11.5987]
[1731778570037,4.638,215.61,215.51,20.0]
[1731778571715,4.638,215.61,215.52,16.2397]
[1731778573229,4.638,215.61,215.52,25.33328351]
[1731778573820,23.776884,215.6,215.52,25.33328351]
[1731778574138,4.6384,215.59,215.52,25.33328351]
[1731778574647,4.6384,215.59,215.52,16.2397]
[1731778575023,23.776884,215.6,215.52,16.2397]
[1731778576134,28.415284,215.6,215.52,11.5998]
[1731778577055,28.415284,215.6,215.52,16.2397]
[1731778579352,28.415284,215.6,215.5,23.2018]
[1731778580241,28.414584,215.62,215.51,20.0]
[1731778580453,0.12549,215.61,215.51,20.0]
[1731778581351,23.776884,215.6,215.52,16.2397]
[1731778582553,0.12549,215.61,215.52,16.2397]
[1731778582853,23.776884,215.59,215.52,16.2397]
[1731778584148,23.776884,215.57,215.52,16.2397]
[1731778584959,23.776884,215.57,215.5,23.2018]
[1731778586036,23.776884,215.57,215.5,39.443]
[1731778586671,4.6378,215.62,215.53,9.09358351]
[1731778586830,4.6367,215.67,215.55,9.09358351]
[1731778587056,4.6367,215.67,215.57,9.09358351]
[1731778587236,4.6367,215.67,215.51,20.34465462]
[1731778587431,4.6367,215.67,215.59,9.09358351]
[1731778588167,15.07476819,215.75,215.51,49.60344473]
[1731778588168,4.6362,215.69,215.6,25.32728351]
[1731778588372,4.6362,215.69,215.6,16.2337]
[1731778588674,4.6362,215.69,215.6,25.32728351]
[1731778589274,4.72947462,215.71,215.6,16.2337]
[1731778589571,151.29785152,215.75,215.62,9.09358351]
[1731778589874,4.6355,215.73,215.61,20.0]
[1731778590564,4.6355,215.73,215.63,9.09358351]
[1731778591169,4.6355,215.73,215.64,16.2306]
[1731778591759,4.6355,215.73,215.64,25.32418351]
[1731778592286,0.12549,215.71,215.57,39.4302]
[1731778592475,0.12549,215.71,215.57,48.52378351]
[1731778592850,0.12549,215.71,215.57,39.4302]
[1731778593049,0.12549,215.71,215.57,48.52378351]
[1731778593467,4.636,215.7,215.58,9.09358351]
[1731778593671,4.636,215.7,215.59,20.0]
[1731778593974,4.636,215.7,215.6,9.09358351]
[1731778594475,4.636,215.7,215.59,9.09358351]
[1731778594679,4.636,215.7,215.6,4.6382]
[1731778597355,4.636,215.7,215.58,20.0]
[1731778597356,0.09367462,215.67,215.58,20.0]
[1731778597553,0.09367462,215.65,215.48,5.3043734]
[1731778597766,0.21916462,215.65,215.51,9.09358351]
[1731778597966,0.21916462,215.65,215.5,32.29538351]
[1731778598158,0.09367462,215.65,215.51,16.2404]
[1731778599391,0.12549,215.62,215.51,16.2404]
[1731778599757,0.12549,215.62,215.51,25.33398351]
[1731778600193,0.12549,215.62,215.52,20.0]
[1731778600480,4.6371,215.65,215.56,9.09358351]
[1731778600865,4.6371,215.65,215.56,14.19383004]
[1731778601677,16.32127462,215.68,215.51,20.0]
[1731778601984,23.99604862,215.66,215.52,11.5995]
[1731778602384,0.21916462,215.66,215.54,14.19383004]
[1731778603595,4.6371,215.65,215.55,14.19383004]
[1731778604192,4.6371,215.65,215.54,14.19383004]
[1731778604688,4.6371,215.65,215.55,36.2374]
[1731778605890,4.6375,215.63,215.55,36.2374]
[1731778606095,4.6375,215.63,215.55,16.2374]
[1731778607282,4.85626462,215.65,215.55,16.2374]
[1731778608885,4.85626462,215.65,215.55,11.5982]
[1731778609301,0.09367462,215.63,215.5,14.19383004]
[1731778609601,150.97842924,215.63,215.49,14.19383004]
[1731778610113,150.97842924,215.63,215.48,14.19383004]
[1731778610114,0.21916462,215.63,215.48,14.19383004]
[1731778610630,0.21916462,215.63,215.49,20.0]
[1731778610823,0.09367462,215.59,215.49,36.2418]
[1731778611110,4.6377,215.62,215.53,14.19383004]
[1731778611290,0.12549,215.61,215.52,14.19383004]
[1731778611480,0.12549,215.61,215.51,14.19383004]
[1731778612300,0.21916462,215.61,215.49,36.2418]
[1731778612480,4.6382,215.6,215.49,50.43563004]
[1731778612884,4.6382,215.6,215.51,14.19383004]
[1731778613516,4.6382,215.6,215.52,4.6399]
[1731778615716,4.6382,215.6,215.51,20.0]
[1731778616178,4.6382,215.6,215.5,16.2412]
[1731778616515,4.6386,215.58,215.5,16.2412]
[1731778617007,4.6386,215.58,215.5,30.43503004]
[1731778617303,4.6386,215.58,215.51,14.19383004]
[1731778617708,4.6386,215.58,215.51,18.83383004]
[1731778617903,155.39716462,215.62,215.55,14.19383004]
[1731778618101,4.6379,215.62,215.55,14.19383004]
[1731778619004,4.73037462,215.67,215.56,4.639]
[1731778619205,0.09367462,215.65,215.56,4.639]
[1731778619399,0.21916462,215.65,215.56,4.639]
[1731778620387,0.21916462,215.65,215.54,11.5984]
[1731778620592,4.6373,215.64,215.54,16.2379]
[1731778622293,4.6373,215.64,215.52,9.08642031]
[1731778622699,4.6373,215.64,215.53,20.0]
[1731778623014,4.6373,215.64,215.5,16.2412]
[1731778623015,23.87055862,215.63,215.5,16.2412]
[1731778623312,0.09367462,215.61,215.5,16.2412]
[1731778624513,0.21916462,215.59,215.5,16.2412]
[1731778625310,4.6386,215.58,215.5,16.2412]
[1731778626459,0.21916462,215.57,215.45,9.08642031]
[1731778626597,23.99604862,215.57,215.44,9.08642031]
[1731778626910,23.99604862,215.57,215.45,9.08642031]
[1731778627324,0.09367462,215.55,215.46,4.6412]
[1731778627494,0.21916462,215.55,215.46,4.6412]
[1731778628004,0.21916462,215.55,215.45,11.6032]
[1731778628210,0.21916462,215.55,215.45,16.2446]
[1731778629211,0.12549,215.55,215.45,11.6032]
[1731778629516,0.09367462,215.53,215.45,11.6032]
[1731778630414,4.73317462,215.54,215.43,4.6418]
[1731778630629,0.09367462,215.52,215.41,33.72852031]
[1731778631106,0.09367462,215.52,215.41,4.6421]
[1731778631613,0.09367462,215.5,215.41,16.2478]
[1731778632322,23.87055862,215.48,215.37,11.6077]
[1731778632581,23.87055862,215.46,215.32,16.2542]
[1731778632705,23.99604862,215.44,215.32,16.2542]
[1731778632916,174.75531324,215.44,215.32,16.2542]
[1731778633331,174.75531324,215.44,215.32,11.6102]
[1731778633742,0.09367462,215.42,215.34,9.08642031]
[1731778634717,0.09367462,215.42,215.34,13.73002031]
[1731778635038,4.6421,215.42,215.34,18.86630322]
[1731778636228,150.75926462,215.44,215.38,14.22270322]
[1731778636433,4.6413,215.46,215.38,14.22270322]
[1731778636627,4.6413,215.46,215.34,14.22270322]
[1731778636628,0.09367462,215.45,215.34,14.22270322]
[1731778636826,0.09367462,215.45,215.37,14.22270322]
[1731778637131,155.39956462,215.5,215.4,14.22270322]
[1731778637431,4.6403,215.5,215.41,14.22270322]
[1731778637645,0.09367462,215.49,215.41,14.22270322]
[1731778638629,0.21916462,215.52,215.42,4.642]
[1731778642217,23.99604862,215.52,215.4,16.2484]
[1731778642828,0.12549,215.49,215.4,11.606]
[1731778643031,0.09367462,215.48,215.4,11.606]
[1731778643442,0.09367462,215.48,215.37,4.6429]
[1731778643647,0.09367462,215.48,215.35,16.2519]
[1731778643822,0.21916462,215.46,215.35,16.2519]
[1731778644748,0.09367462,215.44,215.35,16.2519]
[1731778646221,0.09367462,215.44,215.26,18.769554]
[1731778646222,0.21916462,215.44,215.33,4.6438]
[1731778647334,0.09367462,215.44,215.33,4.6438]
[1731778648660,0.09367462,215.44,215.32,14.22270322]
[1731778648661,0.21916462,215.42,215.31,20.0]
[1731778648964,150.97842924,215.42,215.28,14.22270322]
[1731778649141,150.97842924,215.42,215.29,20.0]
[1731778651869,0.09367462,215.4,215.3,4.6446]
[1731778652473,0.21916462,215.4,215.3,4.6446]
[1731778653155,0.12549,215.4,215.3,4.6446]
[1731778653789,0.09367462,215.39,215.27,11.6133]
[1731778653955,23.87055862,215.37,215.25,1.77]
[1731778654165,23.776884,215.4,215.25,1.77]
[1731778654166,0.21916462,215.35,215.25,1.77]
[1731778654477,53.99604862,215.35,215.25,1.77]
[1731778655075,23.87055862,215.33,215.25,1.77]
[1731778655290,0.09367462,215.31,215.25,1.77]
[1731778655577,174.53614862,215.33,215.25,1.77]
[1731778655578,0.09367462,215.29,215.25,1.77]
[1731778655783,0.21916462,215.29,215.25,1.77]
[1731778656278,0.09367462,215.27,215.25,1.77]
[1731778656580,0.21916462,215.27,215.25,1.77]
[1731778658557,4.6451,215.28,215.25,1.77]
[1731778658558,0.12549,215.28,215.25,1.77]
[1731778658772,0.09367462,215.27,215.25,1.77]
[1731778659682,4.73917462,215.26,215.25,1.77]
[1731778659962,4.86466462,215.26,215.25,1.77]
[1731778661574,4.6455,215.26,215.25,1.77]
[1731778670389,0.12549,215.27,215.25,1.77]
[1731778670683,4.77079,215.27,215.25,1.77]
[1731778671783,150.75926462,215.28,215.25,1.77]
[1731778674880,155.40436462,215.28,215.25,1.77]
[1731778676906,4.73787462,215.32,215.25,1.77]
[1731778677200,0.12549,215.31,215.25,1.77]
[1731778677789,155.40346462,215.32,215.25,18.0301]
[1731778677993,4.6442,215.32,215.25,18.0301]
[1731778678180,0.09367462,215.35,215.25,27.14559319]
[1731778679107,4.6438,215.34,215.25,27.14559319]
[1731778680694,4.6429,215.38,215.27,9.11549319]
[1731778681111,4.6429,215.38,215.28,16.2578]
[1731778681793,4.6429,215.38,215.25,1.77]
[1731778681794,0.09367462,215.37,215.26,4.6454]
[1731778682090,0.21916462,215.37,215.26,4.6454]
[1731778683209,23.99604862,215.35,215.25,1.77]
[1731778683998,23.99604862,215.35,215.25,6.4157]
[1731778685395,0.09367462,215.33,215.25,6.4157]
[1731778685710,0.21916462,215.33,215.25,6.4157]
[1731778686447,150.75926462,215.34,215.25,15.53119319]
[1731778686676,155.40316462,215.34,215.25,18.0301]
[1731778687627,0.09367462,215.33,215.25,1.77]
[1731778687926,0.21916462,215.33,215.25,1.77]
[1731778688517,4.6442,215.32,215.25,1.77]
[1731778690723,0.12549,215.31,215.25,1.77]
[1731778693222,150.75926462,215.36,215.25,6.4157]
[1731778693223,23.902374,215.35,215.25,6.4157]
[1731778693416,28.545974,215.35,215.25,6.4157]
[1731778693932,4.6436,215.35,215.25,15.53119319]
[1731778694135,4.6436,215.35,215.26,9.11549319]
[1731778694336,16.99369459,215.41,215.28,9.11549319]
[1731778694337,4.6425,215.4,215.28,9.11549319]
[1731778694746,4.6425,215.4,215.29,9.11549319]
[1731778695219,4.6425,215.4,215.3,4.6446]
[1731778695427,0.12549,215.39,215.3,4.6446]
[1731778696132,0.09367462,215.4,215.3,4.6446]
[1731778696445,0.12549,215.39,215.3,4.6446]
[1731778697216,4.6429,215.38,215.29,11.612]
[1731778697640,4.6429,215.38,215.29,20.72749319]
[1731778698048,4.6427,215.4,215.31,9.11549319]
[1731778698341,4.6418,215.44,215.35,9.11549319]
[1731778699419,0.09367462,215.46,215.35,11.6089]
[1731778699666,23.99604862,215.46,215.35,11.6089]
[1731778700221,23.99604862,215.46,215.35,16.2525]
[1731778701422,0.21916462,215.44,215.35,11.6089]
[1731778702144,0.21916462,215.44,215.31,9.11549319]
[1731778702335,0.21916462,215.44,215.32,24.644]
[1731778703064,0.21916462,215.44,215.33,9.11549319]
[1731778703439,150.75926462,215.45,215.35,9.11549319]
[1731778703630,150.75926462,215.45,215.34,9.11549319]
[1731778703631,155.40076462,215.45,215.34,9.11549319]
[1731778704624,155.40076462,215.45,215.35,16.2526]
[1731778705647,150.75926462,215.45,215.38,9.11549319]
[1731778705854,150.75926462,215.45,215.37,9.11549319]
[1731778706058,150.75926462,215.45,215.3,39.4797]
[1731778706240,4.6411,215.47,215.37,9.11549319]
[1731778706953,40.23794862,215.49,215.32,4.6442]
[1731778707250,0.09367462,215.45,215.32,11.6106]
[1731778707447,0.09367462,215.45,215.28,9.11549319]
[1731778708650,23.87055862,215.43,215.29,9.11549319]
[1731778708848,4.6416,215.44,215.26,36.2593]
[1731778708849,0.21916462,215.41,215.27,9.11549319]
[1731778709060,0.21916462,215.41,215.28,9.11549319]
[1731778709242,0.21916462,215.41,215.28,29.11549319]
[1731778710056,0.12549,215.39,215.29,16.257]
[1731778711051,4.6429,215.38,215.29,16.257]
[1731778714459,4.6429,215.38,215.25,24.9988]
[1731778714460,0.12549,215.37,215.26,4.6455]
[1731778714958,0.09367462,215.36,215.26,4.6455]
[1731778715254,150.75926462,215.35,215.25,1.77]
[1731778715468,0.12549,215.33,215.25,1.77]
[1731778715764,0.12549,215.31,215.25,1.77]
[1731778716161,150.75926462,215.32,215.25,6.4156]
[1731778716375,150.75926462,215.32,215.25,18.03]
[1731778716737,155.40356462,215.32,215.25,18.03]
[1731778719670,0.21916462,215.31,215.25,1.77]
[1731778720766,155.40356462,215.32,215.25,1.77]
[1731778721467,4.6443,215.32,215.25,1.77]
[1731778721671,0.12549,215.35,215.25,1.77]
[1731778722748,0.12549,215.33,215.25,1.77]
[1731778723760,4.6442,215.32,215.25,1.77]
[1731778728967,0.09367462,215.31,215.25,1.77]
[1731778729162,0.21916462,215.31,215.25,1.77]
[1731778731175,4.6446,215.3,215.25,1.77]
[1731778732261,0.12549,215.34,215.25,1.77]
[1731778732467,4.76929,215.34,215.25,6.4157]
[1731778732890,4.6438,215.34,215.25,18.0301]
[1731778733576,4.73677462,215.37,215.25,18.0301]
[1731778734356,4.6436,215.35,215.25,18.0301]
[1731778736871,4.644,215.33,215.25,19.99615]
[1731778737883,0.09367462,215.35,215.25,19.99615]
[1731778738085,4.73727462,215.35,215.25,19.99615]
[1731778740694,4.73727462,215.35,215.25,29.11164319]
[1731778741397,4.73727462,215.35,215.25,19.99615]
[1731778744972,0.09367462,215.36,215.25,19.99615]
[1731778745172,4.73697462,215.36,215.25,19.99615]
[1731778746094,0.12549,215.35,215.25,19.99615]
[1731778747087,155.49623924,215.36,215.25,19.99615]
[1731778748091,4.6425,215.4,215.28,9.11549319]
[1731778748396,4.6425,215.4,215.3,9.11549319]
[1731778748583,4.6425,215.4,215.31,20.0]
[1731778749202,4.6425,215.4,215.32,16.2548]
[1731778750674,150.75926462,215.44,215.32,16.2548]
[1731778750883,4.6419,215.43,215.32,16.2548]
[1731778751581,4.6421,215.42,215.32,16.2548]
[1731778752297,150.75926462,215.44,215.32,16.2548]
[1731778752494,4.73597462,215.41,215.32,16.2548]
[1731778754287,0.09367462,215.41,215.33,20.0]
[1731778754792,0.09367462,215.41,215.35,43.776884]
[1731778755002,0.09367462,215.41,215.37,20.0]
[1731778756122,0.09367462,215.41,215.38,16.2502]
[1731778760210,0.09367462,215.41,215.39,20.0]
[1731778760415,0.09367462,215.41,215.4,4.6425]
[1731778760614,0.09367462,215.41,215.4,37.53487719]
[1731778760801,0.09367462,215.41,215.4,57.53487719]
[1731778766925,4.6395,215.54,215.41,21.87091438]
[1731778767139,4.6395,215.54,215.42,9.11549319]
[1731778768621,23.902374,215.54,215.42,4.6419]
[1731778769639,4.6399,215.52,215.42,4.6419]
[1731778773119,4.6399,215.52,215.42,36.2471]
[1731778773331,4.6399,215.52,215.42,45.36259319]
[1731778773543,4.6399,215.52,215.44,20.0]
[1731778774037,4.6399,215.52,215.44,9.11549319]
[1731778774344,4.6399,215.52,215.45,9.11549319]
[1731778774637,4.639,215.56,215.47,20.0]
[1731778775723,11.5962,215.59,215.47,20.0]
[1731778775947,11.5962,215.59,215.48,4.6408]
[1731778777746,16.2346,215.59,215.48,4.6408]
[1731778778038,16.2346,215.59,215.48,16.2428]
[1731778778229,4.6384,215.59,215.48,16.2428]
[1731778778431,4.6384,215.59,215.48,25.35829319]
[1731778779334,157.99888903,215.62,215.48,25.35829319]
[1731778779643,4.638,215.61,215.48,25.35829319]
[1731778780260,4.638,215.61,215.48,16.2428]
[1731778780840,0.21916462,215.6,215.48,11.602]
[1731778781044,23.99604862,215.6,215.46,4.6412]
[1731778781720,23.776884,215.58,215.44,11.6039]
[1731778781942,0.12549,215.57,215.42,4.642]
[1731778782241,150.85926462,215.59,215.42,4.642]
[1731778782242,0.12549,215.54,215.42,4.642]
[1731778782720,4.6397,215.53,215.42,4.642]
[1731778783137,150.88475462,215.52,215.41,1.87091438]
[1731778783381,150.75926462,215.51,215.41,1.87091438]
[1731778784446,4.6403,215.5,215.41,1.87091438]
[1731778785721,155.39956462,215.5,215.41,1.87091438]
[1731778786341,14.43618129,215.68,215.42,0.09367462]
[1731778786342,12.56590037,215.63,215.42,0.09367462]
[1731778786643,150.75926462,215.71,215.54,9.11549319]
[1731778786832,150.75926462,215.7,215.54,9.11549319]
[1731778787055,0.09367462,215.69,215.54,9.11549319]
[1731778787272,0.09367462,215.69,215.47,0.35098]